[Event "*** Titled Tuesday Blitz"]
[Site "Chess.com"]
[Date "2019.11.05"]
[Round "2"]
[White "DeGrootteZ"]
[Black "Alexander_Moskalenko"]
[Result "0-1"]
[WhiteElo "2602"]
[BlackElo "2883"]
[TimeControl "180+2"]
[EndTime "13:24:55 PST"]
[Termination "Alexander_Moskalenko won by resignation"]

1. e4 {[%clk 0:03:01.9]} 1... c6 {[%clk 0:02:59.1]} 2. d4 {[%clk 0:03:01.9]}
2... d5 {[%clk 0:03:00.3]} 3. exd5 {[%clk 0:03:03.6]} 3... cxd5 {[%clk
0:02:55.6]} 4. c4 {[%clk 0:03:05.5]} 4... Nf6 {[%clk 0:02:56.5]} 5. Nc3 {[%clk
0:03:07]} 5... Nc6 {[%clk 0:02:57]} 6. Bg5 {[%clk 0:03:08.1]} 6... Be6 {[%clk
0:02:58.2]} 7. a3 {[%clk 0:03:06.7]} 7... g6 {[%clk 0:02:51.9]} 8. Bxf6 {[%clk
0:03:07.3]} 8... exf6 {[%clk 0:02:52.9]} 9. g3 {[%clk 0:03:06.2]} 9... Qd7
{[%clk 0:02:38.1]} 10. Bg2 {[%clk 0:03:03.8]} 10... Ne7 {[%clk 0:02:39.5]} 11.
c5 {[%clk 0:03:02.7]} 11... h5 {[%clk 0:02:39.5]} 12. h4 {[%clk 0:03:02.6]}
12... Bh6 {[%clk 0:02:39.7]} 13. Nge2 {[%clk 0:03:03.1]} 13... Kf8 {[%clk
0:02:32.2]} 14. b4 {[%clk 0:02:54.9]} 14... Kg7 {[%clk 0:02:33.5]} 15. a4 {[%clk
0:02:48.3]} 15... Rae8 {[%clk 0:02:29.4]} 16. Kf1 {[%clk 0:02:44.8]} 16... Bg4
{[%clk 0:02:27.1]} 17. Qd3 {[%clk 0:02:37.2]} 17... a6 {[%clk 0:02:20.1]} 18.
Re1 {[%clk 0:02:21.9]} 18... Nc6 {[%clk 0:02:12.3]} 19. Nxd5 {[%clk 0:02:17.4]}
19... Re6 {[%clk 0:02:05.5]} 20. Nb6 {[%clk 0:02:00.2]} 20... Nxb4 {[%clk
0:02:05]} 21. Qc4 {[%clk 0:01:49.6]} 21... Qe7 {[%clk 0:01:55.2]} 22. Qxb4
{[%clk 0:01:13.8]} 22... Rxe2 {[%clk 0:01:51.6]} 23. Rxe2 {[%clk 0:01:12.3]}
23... Qxe2+ {[%clk 0:01:50]} 24. Kg1 {[%clk 0:01:13.4]} 24... Rd8 {[%clk
0:01:43.7]} 25. Bxb7 {[%clk 0:01:05.2]} 25... Be3 {[%clk 0:01:33.1]} 26. fxe3
{[%clk 0:01:00.4]} 26... Qxe3+ {[%clk 0:01:34.3]} 27. Kh2 {[%clk 0:01:01]} 27...
Rxd4 {[%clk 0:01:35.8]} 28. Qe1 {[%clk 0:00:50.6]} 28... Rd2+ {[%clk 0:01:24.7]}
29. Bg2 {[%clk 0:00:50.7]} 29... Re2 {[%clk 0:01:25.8]} 30. Qf1 {[%clk
0:00:26.5]} 30... Rf2 {[%clk 0:01:26]} 31. Nc4 {[%clk 0:00:17.3]} 31... Qxc5
{[%clk 0:01:26.4]} 32. Qd3 {[%clk 0:00:15.3]} 32... Bf5 {[%clk 0:00:48.2]} 33.
Qe3 {[%clk 0:00:16]} 33... Rxg2+ {[%clk 0:00:49.1]} 34. Kxg2 {[%clk 0:00:17.9]}
34... Qxc4 {[%clk 0:00:50.7]} 35. Re1 {[%clk 0:00:18.2]} 35... Qxa4 {[%clk
0:00:51.5]} 36. Re2 {[%clk 0:00:18.5]} 36... Qc4 {[%clk 0:00:50]} 37. Rd2 {[%clk
0:00:18.8]} 37... a5 {[%clk 0:00:49.9]} 38. Rd8 {[%clk 0:00:18.7]} 38... Be6
{[%clk 0:00:48.4]} 39. Rd4 {[%clk 0:00:17.3]} 39... Qc2+ {[%clk 0:00:45.8]} 40.
Qd2 {[%clk 0:00:17.7]} 40... Qc6+ {[%clk 0:00:46.5]} 41. Kh2 {[%clk 0:00:17.8]}
41... a4 {[%clk 0:00:48]} 42. Qb2 {[%clk 0:00:17.5]} 42... Qf3 {[%clk
0:00:47.9]} 43. Rf4 {[%clk 0:00:18.6]} 43... Qd1 {[%clk 0:00:33.7]} 44. Qxf6+
{[%clk 0:00:19.7]} 44... Kh7 {[%clk 0:00:34.9]} 45. Qd4 {[%clk 0:00:17.2]} 45...
Qe1 {[%clk 0:00:21.1]} 46. Qf2 {[%clk 0:00:17.2]} 46... Qxf2+ {[%clk 0:00:20.3]}
47. Rxf2 {[%clk 0:00:19.1]} 47... a3 {[%clk 0:00:22.1]} 48. Rf4 {[%clk
0:00:19.7]} 48... Bb3 {[%clk 0:00:21.9]} 49. Rf6 {[%clk 0:00:19.4]} 49... Bc4
{[%clk 0:00:21.1]} 50. Rf4 {[%clk 0:00:19.4]} 50... a2 {[%clk 0:00:22.6]} 0-1

[Event "*** Titled Tuesday Blitz"]
[Site "Chess.com"]
[Date "2019.11.05"]
[Round "2"]
[White "albi1999"]
[Black "justantan"]
[Result "1/2-1/2"]
[WhiteElo "2595"]
[BlackElo "2841"]
[TimeControl "180+2"]
[EndTime "13:24:55 PST"]
[Termination "Game drawn by repetition"]

1. d4 {[%clk 0:02:57.2]} 1... d5 {[%clk 0:02:59.5]} 2. c4 {[%clk 0:02:57.7]}
2... e6 {[%clk 0:03:00.4]} 3. Nf3 {[%clk 0:02:58.8]} 3... a6 {[%clk 0:03:00.4]}
4. Bg5 {[%clk 0:02:57.7]} 4... Be7 {[%clk 0:03:00.3]} 5. Bxe7 {[%clk 0:02:57.5]}
5... Nxe7 {[%clk 0:03:01.4]} 6. e3 {[%clk 0:02:59.4]} 6... O-O {[%clk
0:03:02.3]} 7. Nc3 {[%clk 0:03:00]} 7... b6 {[%clk 0:03:02]} 8. cxd5 {[%clk
0:02:57.5]} 8... exd5 {[%clk 0:03:02.6]} 9. Rc1 {[%clk 0:02:58.5]} 9... Be6
{[%clk 0:03:02.6]} 10. Bd3 {[%clk 0:02:59.1]} 10... h6 {[%clk 0:03:03.3]} 11.
O-O {[%clk 0:02:58.5]} 11... Nd7 {[%clk 0:03:04]} 12. b4 {[%clk 0:02:59.7]}
12... Nc8 {[%clk 0:02:55.9]} 13. h3 {[%clk 0:02:58.9]} 13... Nd6 {[%clk
0:02:56.5]} 14. Qe2 {[%clk 0:02:55.4]} 14... a5 {[%clk 0:02:56.6]} 15. b5 {[%clk
0:02:54.7]} 15... Qf6 {[%clk 0:02:53.8]} 16. e4 {[%clk 0:02:39.2]} 16... dxe4
{[%clk 0:02:45.2]} 17. Nxe4 {[%clk 0:02:41.1]} 17... Qd8 {[%clk 0:02:14.5]} 18.
Ne5 {[%clk 0:02:25]} 18... Nxe5 {[%clk 0:02:11.3]} 19. dxe5 {[%clk 0:02:26.9]}
19... Nf5 {[%clk 0:02:12.5]} 20. Rfd1 {[%clk 0:02:21]} 20... Qe7 {[%clk
0:01:59.1]} 21. Qc2 {[%clk 0:02:11.5]} 21... Rfd8 {[%clk 0:01:55.3]} 22. a4
{[%clk 0:01:37.7]} 22... Rd4 {[%clk 0:01:54.5]} 23. Nf6+ {[%clk 0:01:32.2]}
23... gxf6 {[%clk 0:01:53.3]} 24. Bxf5 {[%clk 0:01:34.1]} 24... Bxf5 {[%clk
0:01:29]} 25. Qxf5 {[%clk 0:01:27.5]} 25... Qxe5 {[%clk 0:01:14.7]} 26. Qxe5
{[%clk 0:01:18.5]} 26... Rxd1+ {[%clk 0:01:14.9]} 27. Rxd1 {[%clk 0:01:20.4]}
27... fxe5 {[%clk 0:01:15.9]} 28. Rd7 {[%clk 0:01:21.8]} 28... Rc8 {[%clk
0:01:16.8]} 29. Re7 {[%clk 0:01:22.6]} 29... f6 {[%clk 0:01:15.6]} 30. g4 {[%clk
0:01:22.1]} 30... Kf8 {[%clk 0:01:16.4]} 31. Rh7 {[%clk 0:01:22.5]} 31... Rd8
{[%clk 0:01:13.9]} 32. Rxc7 {[%clk 0:01:14.3]} 32... Rd4 {[%clk 0:01:14.8]} 33.
Rc6 {[%clk 0:01:14.3]} 33... Kg7 {[%clk 0:01:15.9]} 34. Rxb6 {[%clk 0:01:15.4]}
34... Rxa4 {[%clk 0:01:17.1]} 35. Ra6 {[%clk 0:01:15.5]} 35... Ra1+ {[%clk
0:01:17.6]} 36. Kg2 {[%clk 0:01:16.8]} 36... a4 {[%clk 0:01:19]} 37. h4 {[%clk
0:01:17.8]} 37... Kg6 {[%clk 0:01:15.6]} 38. Kg3 {[%clk 0:01:13.8]} 38... Ra3+
{[%clk 0:01:15.3]} 39. Kg2 {[%clk 0:01:14]} 39... Ra2 {[%clk 0:01:14.2]} 40. b6
{[%clk 0:01:10.4]} 40... a3 {[%clk 0:01:11.1]} 41. Kg3 {[%clk 0:01:10.4]} 41...
Rb2 {[%clk 0:01:09]} 42. Rxa3 {[%clk 0:01:01.5]} 42... Rxb6 {[%clk 0:01:09.9]}
43. h5+ {[%clk 0:01:01.5]} 43... Kg7 {[%clk 0:00:58.5]} 44. Ra7+ {[%clk
0:01:02.3]} 44... Kg8 {[%clk 0:00:59.2]} 45. Kf3 {[%clk 0:00:59.1]} 45... Rb4
{[%clk 0:00:55]} 46. Ra6 {[%clk 0:00:56.5]} 46... Kf7 {[%clk 0:00:54.1]} 47.
Ra7+ {[%clk 0:00:57.2]} 47... Kg8 {[%clk 0:00:52.3]} 48. Rc7 {[%clk 0:00:56.6]}
48... Ra4 {[%clk 0:00:50.8]} 49. Kg3 {[%clk 0:00:57.9]} 49... Ra3+ {[%clk
0:00:51.1]} 50. Kg2 {[%clk 0:00:59.2]} 50... Ra4 {[%clk 0:00:52.2]} 51. f3
{[%clk 0:00:59.7]} 51... Ra2+ {[%clk 0:00:51.8]} 52. Kg3 {[%clk 0:01:00.1]}
52... Ra3 {[%clk 0:00:52.8]} 53. Kf2 {[%clk 0:01:00.8]} 53... Rb3 {[%clk
0:00:48.7]} 54. Ke2 {[%clk 0:01:01]} 54... Ra3 {[%clk 0:00:49.6]} 55. Rd7 {[%clk
0:01:01.8]} 55... Rb3 {[%clk 0:00:48.9]} 56. Rd3 {[%clk 0:01:02.5]} 56... Rb4
{[%clk 0:00:49.8]} 57. Ke3 {[%clk 0:01:03.4]} 57... Kf7 {[%clk 0:00:48.9]} 58.
Rd7+ {[%clk 0:01:04]} 58... Kg8 {[%clk 0:00:48.5]} 59. Rc7 {[%clk 0:00:58.6]}
59... Ra4 {[%clk 0:00:49]} 60. Kd3 {[%clk 0:00:57.8]} 60... Rf4 {[%clk
0:00:49.4]} 61. Ke3 {[%clk 0:00:56.4]} 61... Ra4 {[%clk 0:00:50.2]} 62. Kd3
{[%clk 0:00:55.8]} 62... Rf4 {[%clk 0:00:51.2]} 63. Ke3 {[%clk 0:00:57.2]} 63...
Ra4 {[%clk 0:00:52.1]} 1/2-1/2

[Event "*** Titled Tuesday Blitz"]
[Site "Chess.com"]
[Date "2019.11.05"]
[Round "2"]
[White "Storne89"]
[Black "Bagirova"]
[Result "1-0"]
[WhiteElo "2691"]
[BlackElo "2108"]
[TimeControl "180+2"]
[EndTime "13:24:56 PST"]
[Termination "Storne89 won on time"]

1. e4 {[%clk 0:03:01.9]} 1... c5 {[%clk 0:02:07.5]} 2. Nf3 {[%clk 0:03:02.2]}
2... d6 {[%clk 0:02:08.5]} 3. d4 {[%clk 0:03:02.9]} 3... cxd4 {[%clk 0:02:09.8]}
4. Nxd4 {[%clk 0:03:04.8]} 4... Nf6 {[%clk 0:02:11.2]} 5. Nc3 {[%clk 0:03:06.4]}
5... a6 {[%clk 0:02:12.4]} 6. Be2 {[%clk 0:03:07.9]} 6... e6 {[%clk 0:02:12.6]}
7. f4 {[%clk 0:03:04.7]} 7... Be7 {[%clk 0:02:13.6]} 8. Be3 {[%clk 0:02:59.6]}
8... O-O {[%clk 0:02:14.6]} 9. g4 {[%clk 0:03:00.6]} 9... Qc7 {[%clk 0:02:16]}
10. g5 {[%clk 0:03:00.6]} 10... Nfd7 {[%clk 0:02:17.3]} 11. Bf3 {[%clk
0:02:54.3]} 11... Nc6 {[%clk 0:02:17.8]} 12. Nxc6 {[%clk 0:02:45]} 12... bxc6
{[%clk 0:02:18]} 13. O-O {[%clk 0:02:46.5]} 13... Bb7 {[%clk 0:02:11.2]} 14. Bg2
{[%clk 0:02:45.8]} 14... c5 {[%clk 0:02:11.2]} 15. Qd2 {[%clk 0:02:36.6]} 15...
Nb6 {[%clk 0:02:10.5]} 16. b3 {[%clk 0:02:30.8]} 16... d5 {[%clk 0:02:09.7]} 17.
exd5 {[%clk 0:02:32]} 17... exd5 {[%clk 0:02:03.8]} 18. Nxd5 {[%clk 0:02:27.7]}
18... Nxd5 {[%clk 0:01:57.8]} 19. Bxd5 {[%clk 0:02:28.6]} 19... Rad8 {[%clk
0:01:57.2]} 20. c4 {[%clk 0:02:29.6]} 20... Rd7 {[%clk 0:01:37.1]} 21. f5 {[%clk
0:02:10.4]} 21... Qe5 {[%clk 0:01:28.3]} 22. Rad1 {[%clk 0:01:56.9]} 22... Rfd8
{[%clk 0:01:19.7]} 23. f6 {[%clk 0:01:54.9]} 23... gxf6 {[%clk 0:01:03]} 24. Bf4
{[%clk 0:01:30]} 24... Qf5 {[%clk 0:00:57.8]} 25. gxf6 {[%clk 0:01:16.5]} 25...
Bxf6 {[%clk 0:00:55.3]} 26. Bg3 {[%clk 0:00:59]} 26... Bd4+ {[%clk 0:00:50.2]}
27. Qxd4 {[%clk 0:00:54.4]} 27... Qxf1+ {[%clk 0:00:51]} 28. Rxf1 {[%clk
0:00:56.3]} 28... cxd4 {[%clk 0:00:52.4]} 29. Bxb7 {[%clk 0:00:51.3]} 29... Rxb7
{[%clk 0:00:53.1]} 30. Rd1 {[%clk 0:00:50.7]} 30... d3 {[%clk 0:00:53.9]} 31.
Kf2 {[%clk 0:00:51.7]} 31... Re7 {[%clk 0:00:55]} 32. Rd2 {[%clk 0:00:53.2]}
32... Rd4 {[%clk 0:00:51]} 33. c5 {[%clk 0:00:49.5]} 33... f5 {[%clk 0:00:50.4]}
34. Bd6 {[%clk 0:00:48.9]} 34... Rd7 {[%clk 0:00:44]} 35. Ke3 {[%clk 0:00:48.7]}
35... R4xd6 {[%clk 0:00:39.3]} 36. cxd6 {[%clk 0:00:49.2]} 36... Rxd6 {[%clk
0:00:40.4]} 37. Rxd3 {[%clk 0:00:50.5]} 37... f4+ {[%clk 0:00:36.4]} 38. Ke4
{[%clk 0:00:48.6]} 38... Rc6 {[%clk 0:00:37.5]} 39. Rd2 {[%clk 0:00:39]} 39...
Rf6 {[%clk 0:00:35.9]} 40. Kf3 {[%clk 0:00:40]} 40... Kf7 {[%clk 0:00:35.9]} 41.
Rd4 {[%clk 0:00:40.7]} 41... Kg6 {[%clk 0:00:33.5]} 42. Rxf4 {[%clk 0:00:41.6]}
42... Rc6 {[%clk 0:00:34.4]} 43. Ra4 {[%clk 0:00:42.4]} 43... Kf5 {[%clk
0:00:34]} 44. Ra5+ {[%clk 0:00:43.1]} 44... Kf6 {[%clk 0:00:34.2]} 45. Ke4
{[%clk 0:00:44.3]} 45... Ke6 {[%clk 0:00:32.3]} 46. Kd4 {[%clk 0:00:44.3]} 46...
Kd6 {[%clk 0:00:31.2]} 47. Rh5 {[%clk 0:00:45.2]} 47... Rc7 {[%clk 0:00:31.5]}
48. Rh6+ {[%clk 0:00:46]} 48... Kd7 {[%clk 0:00:32.6]} 49. Rxh7+ {[%clk
0:00:47]} 49... Kc6 {[%clk 0:00:33.2]} 50. Rxc7+ {[%clk 0:00:47.6]} 50... Kxc7
{[%clk 0:00:33.9]} 51. h4 {[%clk 0:00:49.5]} 1-0

[Event "*** Titled Tuesday Blitz"]
[Site "Chess.com"]
[Date "2019.11.05"]
[Round "2"]
[White "gross-aleks"]
[Black "LuckIsMySkill"]
[Result "0-1"]
[WhiteElo "2543"]
[BlackElo "2772"]
[TimeControl "180+2"]
[EndTime "13:24:57 PST"]
[Termination "LuckIsMySkill won by resignation"]

1. c4 {[%clk 0:03:01.9]} 1... b6 {[%clk 0:02:59.7]} 2. Nc3 {[%clk 0:03:02.1]}
2... Bb7 {[%clk 0:03:00.9]} 3. e4 {[%clk 0:03:03.3]} 3... e5 {[%clk 0:03:01.7]}
4. Nf3 {[%clk 0:03:02.9]} 4... Nc6 {[%clk 0:03:02.8]} 5. d3 {[%clk 0:03:03.3]}
5... Bc5 {[%clk 0:03:02.5]} 6. Be2 {[%clk 0:03:04.3]} 6... d6 {[%clk 0:03:03.1]}
7. Be3 {[%clk 0:03:04.7]} 7... a5 {[%clk 0:03:03.3]} 8. O-O {[%clk 0:03:05.3]}
8... Nf6 {[%clk 0:03:03.9]} 9. Nd5 {[%clk 0:03:05.5]} 9... O-O {[%clk
0:03:02.2]} 10. Bg5 {[%clk 0:03:03.9]} 10... Nd4 {[%clk 0:02:32.8]} 11. Nxf6+
{[%clk 0:02:54.3]} 11... gxf6 {[%clk 0:02:33.6]} 12. Bh6 {[%clk 0:02:55.3]}
12... Kh8 {[%clk 0:02:05]} 13. Bxf8 {[%clk 0:02:47.1]} 13... Qxf8 {[%clk
0:02:06.9]} 14. Kh1 {[%clk 0:02:41.4]} 14... Qh6 {[%clk 0:02:03.3]} 15. Nxd4
{[%clk 0:02:41.4]} 15... Bxd4 {[%clk 0:02:04.2]} 16. Qc1 {[%clk 0:02:42]} 16...
Qxc1 {[%clk 0:02:03.3]} 17. Raxc1 {[%clk 0:02:42.3]} 17... Bxb2 {[%clk
0:02:04.3]} 18. Rc2 {[%clk 0:02:43.2]} 18... Bd4 {[%clk 0:02:05.2]} 19. Bg4
{[%clk 0:02:44.1]} 19... a4 {[%clk 0:02:03.8]} 20. Bf5 {[%clk 0:02:38.5]} 20...
a3 {[%clk 0:02:01.6]} 21. g3 {[%clk 0:01:23.7]} 21... Ra4 {[%clk 0:01:58.8]} 22.
Rb1 {[%clk 0:01:24]} 22... Bb2 {[%clk 0:01:52.8]} 23. Kg2 {[%clk 0:01:23.5]}
23... Kg7 {[%clk 0:01:53.2]} 24. Kf3 {[%clk 0:01:22]} 24... Bc6 {[%clk
0:01:52.1]} 25. h4 {[%clk 0:01:17.1]} 25... Rb4 {[%clk 0:01:52.7]} 26. Rd2
{[%clk 0:00:58.5]} 26... Ba4 {[%clk 0:01:50.4]} 27. Kg2 {[%clk 0:00:34.7]} 27...
b5 {[%clk 0:01:34.4]} 28. cxb5 {[%clk 0:00:30.1]} 28... Bxb5 {[%clk 0:01:36.3]}
29. Bg4 {[%clk 0:00:28.4]} 29... Rd4 {[%clk 0:01:27.2]} 30. Be2 {[%clk
0:00:28.9]} 30... c5 {[%clk 0:01:25.8]} 31. Rbd1 {[%clk 0:00:21.1]} 31... Bd7
{[%clk 0:01:19.7]} 32. Kf1 {[%clk 0:00:21.3]} 32... Be6 {[%clk 0:01:19.9]} 33.
Rb1 {[%clk 0:00:20.5]} 33... c4 {[%clk 0:01:21.1]} 34. Rbxb2 {[%clk 0:00:20.9]}
34... axb2 {[%clk 0:01:23]} 35. Rxb2 {[%clk 0:00:21.9]} 35... cxd3 {[%clk
0:01:24.6]} 36. Bf3 {[%clk 0:00:23]} 36... d2 {[%clk 0:01:23.3]} 37. Bd1 {[%clk
0:00:21.8]} 37... Bc4+ {[%clk 0:01:23.1]} 38. Kg2 {[%clk 0:00:22.9]} 38... Kf8
{[%clk 0:00:27.7]} 39. f3 {[%clk 0:00:23.5]} 39... d5 {[%clk 0:00:25]} 40. exd5
{[%clk 0:00:23.6]} 40... Rxd5 {[%clk 0:00:26.9]} 41. Kf2 {[%clk 0:00:24.6]}
41... Ke7 {[%clk 0:00:24.2]} 42. a4 {[%clk 0:00:25.3]} 42... f5 {[%clk
0:00:21.7]} 43. Rc2 {[%clk 0:00:24.6]} 43... Bb3 {[%clk 0:00:18.9]} 44. Rc7+
{[%clk 0:00:22.9]} 44... Kd6 {[%clk 0:00:19.6]} 45. Bxb3 {[%clk 0:00:14.2]}
45... Kxc7 {[%clk 0:00:20.6]} 46. Ke2 {[%clk 0:00:15.5]} 46... Rd4 {[%clk
0:00:19.6]} 47. Ke3 {[%clk 0:00:13.7]} 47... d1=Q {[%clk 0:00:20.2]} 0-1

[Event "*** Titled Tuesday Blitz"]
[Site "Chess.com"]
[Date "2019.11.05"]
[Round "2"]
[White "LPSupi"]
[Black "tango_argentino"]
[Result "1-0"]
[WhiteElo "2994"]
[BlackElo "2646"]
[TimeControl "180+2"]
[EndTime "13:24:59 PST"]
[Termination "LPSupi won by checkmate"]

1. d4 {[%clk 0:03:00.5]} 1... Nf6 {[%clk 0:03:00.6]} 2. c4 {[%clk 0:03:01.4]}
2... g6 {[%clk 0:03:01.6]} 3. g3 {[%clk 0:02:59.1]} 3... Bg7 {[%clk 0:03:01]} 4.
Bg2 {[%clk 0:03:00.3]} 4... O-O {[%clk 0:03:02.6]} 5. Nc3 {[%clk 0:03:01.4]}
5... Nc6 {[%clk 0:03:03.1]} 6. Nf3 {[%clk 0:03:02.3]} 6... d6 {[%clk 0:03:04.3]}
7. O-O {[%clk 0:03:03.1]} 7... e5 {[%clk 0:03:05.6]} 8. dxe5 {[%clk 0:03:03.9]}
8... dxe5 {[%clk 0:03:05.7]} 9. Bg5 {[%clk 0:03:04.3]} 9... Be6 {[%clk 0:03:07]}
10. Qc1 {[%clk 0:03:04.3]} 10... Qb8 {[%clk 0:03:08]} 11. Rd1 {[%clk 0:02:59.8]}
11... Nd7 {[%clk 0:03:05.3]} 12. Bh6 {[%clk 0:02:51.2]} 12... f6 {[%clk
0:03:03.9]} 13. b3 {[%clk 0:02:37.9]} 13... Rf7 {[%clk 0:02:46.7]} 14. Bxg7
{[%clk 0:02:34.9]} 14... Kxg7 {[%clk 0:02:48.6]} 15. Nd5 {[%clk 0:02:10.6]}
15... Nd8 {[%clk 0:02:45.4]} 16. h4 {[%clk 0:02:04.2]} 16... h5 {[%clk
0:02:38.6]} 17. Qe3 {[%clk 0:01:58.3]} 17... c6 {[%clk 0:02:37]} 18. Nc3 {[%clk
0:01:58.6]} 18... Re7 {[%clk 0:02:35.4]} 19. Rd2 {[%clk 0:01:52.8]} 19... Nf7
{[%clk 0:02:35.9]} 20. Rad1 {[%clk 0:01:54.4]} 20... Qc7 {[%clk 0:02:37.1]} 21.
Ne4 {[%clk 0:01:48.5]} 21... a5 {[%clk 0:02:23.5]} 22. Ne1 {[%clk 0:01:34.4]}
22... a4 {[%clk 0:02:17.4]} 23. Nd3 {[%clk 0:01:32]} 23... axb3 {[%clk 0:02:15]}
24. axb3 {[%clk 0:01:32.8]} 24... Bf5 {[%clk 0:02:11.1]} 25. Ndc5 {[%clk
0:01:28.6]} 25... Nxc5 {[%clk 0:02:10.2]} 26. Nxc5 {[%clk 0:01:30.5]} 26... Rd8
{[%clk 0:01:51.8]} 27. Rxd8 {[%clk 0:01:27.6]} 27... Nxd8 {[%clk 0:01:53.7]} 28.
Be4 {[%clk 0:01:25.5]} 28... Bc8 {[%clk 0:01:27.7]} 29. Qd3 {[%clk 0:01:24.6]}
29... b6 {[%clk 0:01:12]} 30. Qxd8 {[%clk 0:01:17.6]} 30... bxc5 {[%clk
0:01:12.4]} 31. Bxc6 {[%clk 0:01:15.3]} 31... Bg4 {[%clk 0:01:03.2]} 32. f3
{[%clk 0:01:05.1]} 32... Bf5 {[%clk 0:01:04]} 33. e4 {[%clk 0:01:02.7]} 33...
Be6 {[%clk 0:01:01.2]} 34. Ba4 {[%clk 0:00:48.3]} 34... Qa7 {[%clk 0:00:53.6]}
35. Kf2 {[%clk 0:00:42.9]} 35... Rf7 {[%clk 0:00:47.9]} 36. Rd6 {[%clk 0:00:42]}
36... Bxc4 {[%clk 0:00:44]} 37. Rc6 {[%clk 0:00:35.3]} 37... Bxb3 {[%clk
0:00:41.2]} 38. Rc8 {[%clk 0:00:33.6]} 38... c4+ {[%clk 0:00:29.3]} 39. Kg2
{[%clk 0:00:35.2]} 39... Kh6 {[%clk 0:00:24.5]} 40. Qh8+ {[%clk 0:00:23.1]}
40... Rh7 {[%clk 0:00:23.8]} 41. Qxf6 {[%clk 0:00:24.6]} 41... Bxa4 {[%clk
0:00:18.8]} 42. Rg8 {[%clk 0:00:17]} 42... Rg7 {[%clk 0:00:15]} 43. Rh8+ {[%clk
0:00:15.1]} 43... Rh7 {[%clk 0:00:15.9]} 44. Rg8 {[%clk 0:00:14.7]} 44... Rg7
{[%clk 0:00:15.6]} 45. Qf8 {[%clk 0:00:16.2]} 45... Qf7 {[%clk 0:00:13.4]} 46.
Rh8# {[%clk 0:00:17]} 1-0

[Event "*** Titled Tuesday Blitz"]
[Site "Chess.com"]
[Date "2019.11.05"]
[Round "2"]
[White "deBaller"]
[Black "Rodalquilar"]
[Result "0-1"]
[WhiteElo "2336"]
[BlackElo "2675"]
[TimeControl "180+2"]
[EndTime "13:24:59 PST"]
[Termination "Rodalquilar won by resignation"]

1. e4 {[%clk 0:03:01.9]} 1... e5 {[%clk 0:02:59.8]} 2. Nf3 {[%clk 0:03:02.7]}
2... Nc6 {[%clk 0:03:01.3]} 3. d4 {[%clk 0:03:03.5]} 3... exd4 {[%clk
0:03:02.1]} 4. Bc4 {[%clk 0:03:05.1]} 4... d6 {[%clk 0:03:01.8]} 5. Nxd4 {[%clk
0:03:05.6]} 5... g6 {[%clk 0:03:03.2]} 6. Nc3 {[%clk 0:03:02.8]} 6... Bg7 {[%clk
0:03:04.4]} 7. Be3 {[%clk 0:03:03.3]} 7... Nf6 {[%clk 0:03:03.1]} 8. f3 {[%clk
0:03:04.3]} 8... O-O {[%clk 0:02:54.5]} 9. Qd2 {[%clk 0:03:05]} 9... Ne5 {[%clk
0:02:55.6]} 10. Be2 {[%clk 0:02:42.9]} 10... d5 {[%clk 0:02:56.9]} 11. exd5
{[%clk 0:02:31.3]} 11... Nxd5 {[%clk 0:02:58.8]} 12. Nxd5 {[%clk 0:02:32]} 12...
Qxd5 {[%clk 0:03:00.7]} 13. O-O {[%clk 0:02:27.8]} 13... Nc4 {[%clk 0:02:49.2]}
14. Bxc4 {[%clk 0:02:25.4]} 14... Qxc4 {[%clk 0:02:51.1]} 15. b3 {[%clk
0:02:26.3]} 15... Qa6 {[%clk 0:02:43.9]} 16. c3 {[%clk 0:01:58.4]} 16... Rd8
{[%clk 0:02:43.5]} 17. Qf2 {[%clk 0:01:56.6]} 17... c5 {[%clk 0:02:44.3]} 18.
Ne2 {[%clk 0:01:52.5]} 18... b6 {[%clk 0:02:41.1]} 19. Rad1 {[%clk 0:01:50.5]}
19... Bb7 {[%clk 0:02:40.8]} 20. a4 {[%clk 0:01:35.2]} 20... Rd3 {[%clk
0:02:26.5]} 21. Bd2 {[%clk 0:00:50.3]} 21... Rad8 {[%clk 0:02:12.5]} 22. Nf4
{[%clk 0:00:50.9]} 22... R3d7 {[%clk 0:02:08.2]} 23. c4 {[%clk 0:00:20.9]} 23...
Bd4 {[%clk 0:02:05.6]} 24. Be3 {[%clk 0:00:19.4]} 24... Bxe3 {[%clk 0:02:06.6]}
25. Qxe3 {[%clk 0:00:20]} 25... Rxd1 {[%clk 0:02:07.8]} 26. Rxd1 {[%clk
0:00:20.5]} 26... Rxd1+ {[%clk 0:02:09.7]} 27. Kf2 {[%clk 0:00:22.2]} 27... Rd8
{[%clk 0:02:03.2]} 28. Qe7 {[%clk 0:00:22.6]} 28... Rf8 {[%clk 0:01:56.1]} 29.
h4 {[%clk 0:00:23.2]} 29... Qa5 {[%clk 0:01:57.1]} 30. Qxb7 {[%clk 0:00:23.3]}
30... Qd2+ {[%clk 0:01:58.2]} 31. Kg3 {[%clk 0:00:24.5]} 31... Qe1+ {[%clk
0:01:58.1]} 32. Kh3 {[%clk 0:00:21.8]} 32... h6 {[%clk 0:01:21.2]} 33. Nd5
{[%clk 0:00:20.1]} 33... g5 {[%clk 0:01:18.3]} 34. hxg5 {[%clk 0:00:14.1]} 34...
hxg5 {[%clk 0:01:20.2]} 35. g3 {[%clk 0:00:11]} 35... Qe6+ {[%clk 0:01:05.6]}
36. Kg2 {[%clk 0:00:10.8]} 36... Qe2+ {[%clk 0:01:06.5]} 37. Kh3 {[%clk
0:00:12.2]} 37... Kg7 {[%clk 0:00:58.4]} 38. Kg4 {[%clk 0:00:12.3]} 38... Re8
{[%clk 0:00:37.8]} 39. Qc6 {[%clk 0:00:09.9]} 39... Re6 {[%clk 0:00:22.8]} 40.
Qd7 {[%clk 0:00:10.7]} 40... Re4+ {[%clk 0:00:19.2]} 41. Kxg5 {[%clk 0:00:11.7]}
41... Qxf3 {[%clk 0:00:20.3]} 42. Qf5 {[%clk 0:00:12.1]} 42... Qxf5+ {[%clk
0:00:13.8]} 43. Kxf5 {[%clk 0:00:14]} 43... Re1 {[%clk 0:00:15.2]} 44. b4 {[%clk
0:00:12.6]} 44... cxb4 {[%clk 0:00:14.2]} 45. Nxb4 {[%clk 0:00:14.5]} 45... Ra1
{[%clk 0:00:15.6]} 46. c5 {[%clk 0:00:13.7]} 46... bxc5 {[%clk 0:00:16.4]} 47.
Nd3 {[%clk 0:00:14.9]} 47... c4 {[%clk 0:00:16.3]} 48. Nc5 {[%clk 0:00:15.6]}
48... c3 {[%clk 0:00:17.2]} 49. Nb3 {[%clk 0:00:15.3]} 49... Ra3 {[%clk
0:00:18.2]} 0-1